[Event "3rd Matrix Cup 2024"]
[Site "New Delhi"]
[Date "2024.04.07"]
[Round "3.7"]
[White "Gopalakrishnan G"]
[Black "Sharma, Harish"]
[Result "0-1"]
[ECO "C06"]
[WhiteElo "1701"]
[BlackElo "1913"]
[Annotator "RC"]
[PlyCount "77"]
[EventDate "2024.04.07"]
[EventType "swiss"]
[EventCountry "IND"]
[SourceTitle "playchess.com"]
[Source "ChessBase"]
[SourceQuality "1"]
[TimeControl "5400+30"]

1. e4 {[%emt 0:00:06]} e6 {[%emt 0:00:06]} 2. d4 {[%emt 0:00:05]} d5 {[%emt 0:00:05]} 3. Nd2 {[%emt 0:00:05]} Nf6 {[%emt 0:00:09]} 4. e5 {[%emt 0:00:10]} Nfd7 {[%emt 0:00:08]} 5. c3 {[%emt 0:00:07]} c5 {[%emt 0:00:06]} 6. Bd3 {[%emt 0:00:05]} Nc6 {[%emt 0:00:17]} 7. Ne2 {[%emt 0:00:13]} cxd4 {[%emt 0:00:33]} 8. cxd4 {[%emt 0:00:19]} f6 {[%emt 0:02:07]} 9. Nf4 {[%emt 0:03:50]} Nxd4 {[%emt 0:00:23]} 10. Qh5+ {[%emt 0:00:26]} Ke7 {[%emt 0:00:09]} 11. Bxh7 {[%emt 0:08:21]} Nxe5 {[%emt 0:00:17]} 12. O-O {[%emt 0:04:53]} g5 {[%emt 0:00:40]} 13. Ng6+ {[%emt 0:01:23]} Nxg6 {[%emt 0:02:06]} 14. Qxg6 {[%emt 0:00:26]} Ne2+ {[%emt 0:09:04]} 15. Kh1 {[%emt 0:00:28]} Qe8 {[%emt 0:00:10]} 16. Qxe8+ {[%emt 0:05:16]} Kxe8 {[%emt 0:04:54]} 17. Bb1 {[%emt 0:03:00]} Bd6 {[%emt 0:04:02]} 18. g3 {[%emt 0:01:36]} Bd7 {[%emt 0:00:41]} 19. Bd3 {[%emt 0:02:26]} Nxc1 {[%emt 0:03:31]} 20. Raxc1 {[%emt 0:00:58]} Kf7 {[%emt 0:00:07]} 21. Nb3 {[%emt 0:03:49]} Rh6 {[%emt 0:01:16]} 22. Kg2 {[%emt 1:03:28]} Rah8 {[%emt 0:03:20]} 23. Rh1 {[%emt 0:00:00]} e5 {[%emt 0:00:34]} 24. Nc5 {[%emt 0:00:00]} Bh3+ {[%emt 0:01:03]} 25. Kg1 {[%emt 0:00:00]} Rc8 {[%emt 0:00:02]} 26. Nb3 {[%emt 0:00:00]} Rxc1+ {[%emt 0:00:44]} 27. Nxc1 {[%emt 0:00:00]} Bc5 {[%emt 0:00:18]} 28. Nb3 {[%emt 0:00:00]} Bb6 {[%emt 0:00:03]} 29. Bf1 {[%emt 0:00:00]} Be6 {[%emt 0:00:49]} 30. Bd3 {[%emt 0:00:00]} e4 {[%emt 0:00:10]} 31. Be2 {[%emt 0:00:00]} d4 {[%emt 0:00:42]} 32. Kf1 {[%emt 0:00:00]} d3 {[%emt 0:00:17]} 33. Bd1 {[%emt 0:00:00]} Bh3+ {[%emt 0:02:10]} 34. Ke1 {[%emt 0:00:00]} Bg2 {[%emt 0:00:11]} 35. Rg1 {[%emt 0:00:00]} Rxh2 {[%emt 0:00:09]} 36. Nd2 {[%emt 0:00:00]} e3 {[%emt 0:00:25]} 37. fxe3 {[%emt 0:00:00]} Bxe3 {[%emt 0:00:08]} 38. Bb3+ {[%emt 0:00:00]} Ke7 {[%emt 0:00:46]} 39. Nc4 {[%emt 0:00:00]} 0-1

[Event "3rd Matrix Cup 2024"]
[Site "New Delhi"]
[Date "2024.04.07"]
[Round "3.8"]
[White "Mohan, Naithani"]
[Black "Mrityunjay Kumar"]
[Result "0-1"]
[ECO "D00"]
[WhiteElo "1694"]
[BlackElo "1900"]
[Annotator "RC"]
[PlyCount "64"]
[EventDate "2024.04.07"]
[EventType "swiss"]
[EventCountry "IND"]
[SourceTitle "playchess.com"]
[Source "ChessBase"]
[SourceQuality "1"]
[TimeControl "5400+30"]

1. d4 {[%emt 0:02:34]} Nf6 {[%emt 0:04:45]} 2. Bf4 {[%emt 0:00:23]} d5 {[%emt 0:00:23]} 3. e3 {[%emt 0:00:18]} e6 {[%emt 0:00:06]} 4. Nd2 {[%emt 0:00:19]} c5 {[%emt 0:00:13]} 5. c3 {[%emt 0:00:23]} Nc6 {[%emt 0:00:06]} 6. Bd3 {[%emt 0:00:31]} Qb6 {[%emt 0:01:19]} 7. Rb1 {[%emt 0:03:53]} Bd7 {[%emt 0:00:17]} 8. Ngf3 {[%emt 0:02:16]} Rc8 {[%emt 0:00:29]} 9. Ne5 {[%emt 0:03:42]} Nxe5 {[%emt 0:00:56]} 10. dxe5 {[%emt 0:00:19]} Ng8 {[%emt 0:00:08]} 11. h4 {[%emt 0:04:50]} Bb5 {[%emt 0:00:27]} 12. c4 {[%emt 0:00:45]} Bd7 {[%emt 0:00:49]} 13. Kf1 {[%emt 0:07:38]} Ne7 {[%emt 0:00:07]} 14. h5 {[%emt 0:03:00]} Qa5 {[%emt 0:03:11]} 15. Ra1 {[%emt 0:04:03]} b5 {[%emt 0:00:21]} 16. b3 {[%emt 0:04:10]} Qa3 {[%emt 0:04:20]} 17. Qc2 {[%emt 0:04:35]} Nc6 {[%emt 0:02:36]} 18. Be2 {[%emt 0:01:32]} Nb4 {[%emt 0:03:56]} 19. Qb1 {[%emt 0:04:38]} a6 {[%emt 0:03:15]} 20. f3 {[%emt 0:02:38]} Be7 {[%emt 0:00:20]} 21. Kf2 {[%emt 0:00:34]} O-O {[%emt 0:09:49]} 22. Qg1 {[%emt 0:06:10]} f6 {[%emt 0:03:08]} 23. Qc1 {[%emt 0:04:21]} Qa5 {[%emt 0:07:52]} 24. Qc3 {[%emt 0:06:27]} d4 {[%emt 0:00:18]} 25. Qb2 {[%emt 0:01:01]} Nc6 {[%emt 0:00:38]} 26. exf6 {[%emt 0:01:03]} Bxf6 {[%emt 0:00:13]} 27. Qc2 {[%emt 0:03:03]} e5 {[%emt 0:03:14]} 28. Bd3 {[%emt 0:03:50]} h6 {[%emt 0:01:42]} 29. Bxh6 {[%emt 0:05:09]} gxh6 {[%emt 0:02:00]} 30. Be4 {[%emt 0:01:42]} dxe3+ {[%emt 0:00:34]} 31. Kg3 {[%emt 0:02:02]} Qxd2 {[%emt 0:00:47]} 32. Bd5+ {[%emt 0:02:08]} Kh8 {[%emt 0:00:11]} 0-1

[Event "3rd Matrix Cup 2024"]
[Site "New Delhi"]
[Date "2024.04.07"]
[Round "4.1"]
[White "Aadya Gupta"]
[Black "Aronyak Ghosh"]
[Result "0-1"]
[ECO "E12"]
[WhiteElo "1775"]
[BlackElo "2517"]
[Annotator "TA"]
[PlyCount "118"]
[EventDate "2024.04.07"]
[EventType "swiss"]
[EventCountry "IND"]
[SourceTitle "playchess.com"]
[Source "ChessBase"]
[SourceQuality "1"]
[TimeControl "5400+30"]

{[%evp 10,118,13,9,28,10,10,17,15,5,9,14,33,19,29,0,2,-64,-23,-83,-47,-54,-46,-45,-16,-5,-10,-4,0,0,0,-14,0,0,0,0,0,0,0,0,0,0,0,0,0,-16,-16,-16,-16,-100,-100,-101,-101,-100,-100,-100,-100,-108,-108,-108,-93,-100,-93,-387,-412,-413,-349,-658,-644,-1634,-1404,-1366,-1396,-1366,-1355,-1165,-1051,-922,0,-1811,-1664,-1747,-1453,-1845,-1731,-1437,-1468,-1570,-1337,-2493,-2445,-29959,-11644,-29971,-12225,-29978,-29979,-29980,-29981,-29982,-29983,-29984,-29985,-29986,-29986,-29988,-29987,-29989,-29990,-29991,-29992]} 1. d4 {[%emt 0:00:07]} Nf6 {[%emt 0:01:18]} 2. c4 {[%emt 0:00:01]} e6 {[%emt 0:00:20]} 3. Nf3 {[%emt 0:00:06]} b6 {[%emt 0:00:50]} 4. a3 {[%emt 0:00:02]} Ba6 {[%emt 0:02:17]} 5. e3 {[%emt 0:00:39]} d5 {[%emt 0:01:54]} 6. Nbd2 {[%emt 0:00:09]} Bb7 {[%emt 0:02:15]} 7. b3 {[%emt 0:06:33]} Nbd7 {[%emt 0:01:23]} 8. Bb2 {[%emt 0:00:13]} a5 {[%emt 0:01:22] The position is equal.} 9. Bd3 {[%emt 0:01:54]} Bd6 {[%emt 0:00:58]} 10. O-O {[%emt 0:00:35]} Rc8 {[%emt 0:05:59]} 11. Ne5 {[%emt 0:03:30][%cal Ob3b4]} O-O {[%emt 0:05:57]} 12. Qb1 {[%emt 0:05:20]} h6 {[%emt 0:05:45]} 13. e4 {[%emt 0:03:25]} (13. f4 $11) 13... dxe4 {[%emt 0:04:54]} 14. Nxe4 {[%emt 0:01:07]} (14. Nxd7 $11 {remains equal.} Qxd7 (14... exd3 15. Nxf8 Ng4 16. h3 $11) 15. Nxe4) 14... Bxe4 {[%emt 0:10:38]} (14... Bxe5 {is more complex.} 15. dxe5 Ng4 16. Be2 Qh4) 15. Bxe4 {[%emt 0:00:48]} Nxe4 {[%emt 0:04:55]} 16. Qxe4 {[%emt 0:00:18]} Nxe5 {[%emt 0:02:27]} 17. dxe5 {[%emt 0:00:05][%cal Of1d1] [#] Rfd1! would now be deadly.} Bc5 {[%emt 0:00:02]} 18. Rad1 {[%emt 0:09:24] Wards off Qd2} Qe7 {[%emt 0:00:48]} 19. a4 {[%emt 0:00:01]} Rcd8 {[%emt 0:00:06]} 20. Qg4 {[%emt 0:01:04]} Rxd1 {[%emt 0:05:17]} 21. Rxd1 {[%emt 0:00:04]} Rd8 {[%emt 0:00:02]} 22. g3 {[%emt 0:03:50] Dodges Qh4} Rd7 {[%emt 0:04:45]} 23. Kg2 {[%emt 0:02:54]} Qe8 {[%emt 0:00:33]} 24. Rxd7 {[%emt 0:00:52]} Qxd7 $11 {[%emt 0:00:02][%mdl 4096] Endgame. KQB-KQB} 25. Qe2 {[%emt 0:01:26] Wards off Qd2} h5 {[%emt 0:01:03]} 26. h4 {[%emt 0:01:17]} Qc6+ {[%emt 0:00:36]} 27. Qf3 {[%emt 0:01:17]} Qxf3+ {[%emt 0:02:07]} 28. Kxf3 {[%emt 0:00:02] KB-KB} Kh7 {[%emt 0:00:02]} 29. Bc3 {[%emt 0:03:33]} (29. Ke2 $11) 29... Kg6 $17 {[%emt 0:00:39]} 30. Ba1 {[%emt 0:00:26]} Kf5 {[%emt 0:00:16]} 31. Bc3 {[%emt 0:00:26]} g5 {[%emt 0:05:19]} 32. hxg5 {[%emt 0:01:03]} Kxg5 {[%emt 0:00:07]} 33. Bd2+ {[%emt 0:02:31]} Kf5 {[%emt 0:00:06]} 34. Bc3 {[%emt 0:00:03]} Bf8 {[%emt 0:00:55]} 35. Ke3 {[%emt 0:05:35]} Bh6+ {[%emt 0:02:32]} 36. f4 $2 {[%emt 0:01:38][%mdl 8192]} (36. Kd3 $17 {is a better defense.} Bf8 37. Ke3) 36... Kg4 $19 {[%emt 0:04:31]} 37. Kf2 {[%emt 0:04:05]} Bf8 {[%emt 0:01:26] Prevents c5.} 38. Kg2 $2 {[%emt 0:00:59]} (38. Bd2 Bc5+ 39. Kg2) 38... Bb4 {[%emt 0:01:04]} 39. Bd4 {[%emt 0:03:47]} c5 {[%emt 0:01:34]} 40. Bf2 {[%emt 0:02:19]} Bc3 {[%emt 0:01:01]} 41. Bg1 {[%emt 0:01:33]} Be1 {[%emt 0:00:19]} 42. Bh2 {[%emt 0:00:16]} Bd2 {[%emt 0:00:14]} 43. Bg1 {[%emt 0:00:41]} Be1 {[%emt 0:01:00]} (43... h4 $142 44. gxh4 Bxf4 (44... Kxf4 $2 45. Bh2+ Kg4 46. h5 $19)) 44. Bh2 $1 {[%emt 0:00:09]} h4 {[%emt 0:00:48]} 45. gxh4 {[%emt 0:00:21]} Bxh4 {[%emt 0:00:07]} 46. f5 {[%emt 0:01:03]} Kxf5 {[%emt 0:00:08]} 47. Kf3 {[%emt 0:00:05]} Be1 {[%emt 0:00:15]} 48. Bg1 {[%emt 0:00:34]} Bc3 {[%emt 0:00:15][%cal Oc3d4] [#] And now ...Bd4! would win.} 49. Be3 {[%emt 0:00:03]} Bxe5 {[%emt 0:00:07] ...Bd4 is the strong threat.} 50. Bh6 {[%emt 0:00:19]} Bd6 {[%emt 0:00:38]} 51. Be3 {[%emt 0:00:29]} e5 {[%emt 0:00:40] ( -> ...e4+)} 52. Bf2 {[%emt 0:00:06]} e4+ {[%emt 0:00:22] Black mates.} 53. Ke2 {[%emt 0:00:09]} Kg4 {[%emt 0:00:10]} 54. Ke3 {[%emt 0:00:19]} f5 {[%emt 0:00:11]} 55. Ke2 {[%emt 0:00:11]} f4 {[%emt 0:00:10]} 56. Be1 {[%emt 0:00:05]} Be5 {[%emt 0:00:06]} 57. Bd2 {[%emt 0:00:04]} Bd4 {[%emt 0:00:07]} 58. Be1 {[%emt 0:00:04]} f3+ {[%emt 0:00:03]} 59. Kd1 {[%emt 0:00:07]} e3 {[%emt 0:00:04] Weighted Error Value: White=0.78/Black=0.13 (very precise) .  Loses game:     	White=1     	---        Mistake:       	White=4     	---        Inaccurate:     	White=2     	Black=3      OK:         	White=11    	Black=10     Best:        	White=2     	Black=4} 0-1

[Event "3rd Matrix Cup 2024"]
[Site "New Delhi"]
[Date "2024.04.07"]
[Round "4.2"]
[White "Neelash Saha"]
[Black "Shubh Singh Saini"]
[Result "1-0"]
[ECO "B07"]
[WhiteElo "2464"]
[BlackElo "1771"]
[Annotator "TA"]
[PlyCount "111"]
[EventDate "2024.04.07"]
[EventType "swiss"]
[EventCountry "IND"]
[SourceTitle "playchess.com"]
[Source "ChessBase"]
[SourceQuality "1"]
[TimeControl "5400+30"]

{[%evp 11,110,23,26,16,30,21,28,37,56,15,59,48,83,78,119,101,133,104,122,60,111,93,185,195,282,-43,-39,-42,-55,-114,-108,-102,-124,-112,-93,-106,-118,-88,-57,-66,-64,-57,-57,-57,-57,-60,-52,-55,-21,-23,-36,-18,-10,-46,-54,-60,-13,-6,32,37,31,28,38,38,38,0,46,54,246,246,246,221,221,211,779,608,1362,1313,1185,374,848,586,539,345,2619,3377,11305,5081,29953,10615,29961,1872,29966,29969,29980,29982,29989,29990,29990,29991,29993]} 1. d4 {[%emt 0:00:10]} g6 {[%emt 0:14:51]} 2. e4 {[%emt 0:01:08]} d6 {[%emt 0:00:18]} 3. Nc3 {[%emt 0:01:19]} Nf6 {[%emt 0:03:32]} 4. Be2 {[%emt 0:00:23]} Bg7 {[%emt 0:00:11]} 5. h4 {[%emt 0:00:09]} h5 {[%emt 0:00:55]} 6. Nh3 {[%emt 0:00:05]} Nc6 {[%emt 0:05:38]} 7. f3 {[%emt 0:08:56]} a6 {[%emt 0:04:53]} 8. Be3 {[%emt 0:00:40]} e5 {[%emt 0:05:35]} 9. d5 {[%emt 0:01:23] White has an edge.} Ne7 {[%emt 0:01:09]} 10. Nb1 {[%emt 0:06:24]} Nfg8 {[%emt 0:05:29]} 11. c4 {[%emt 0:01:14]} b6 {[%emt 0:04:09]} 12. Nc3 {[%emt 0:00:43]} a5 {[%emt 0:01:44]} 13. Qd2 {[%emt 0:05:30]} f5 {[%emt 0:08:06]} 14. g3 {[%emt 0:00:05] White is more active.} Nf6 {[%emt 0:06:09]} 15. Nf2 {[%emt 0:00:09]} ({White should try} 15. Ng5 $16) 15... Neg8 {[%emt 0:06:47]} (15... fxe4 $14 16. fxe4 Neg8) 16. Bg5 {[%emt 0:01:58]} Bh6 {[%emt 0:00:38]} (16... Qe7 $16) 17. exf5 $18 {[%emt 0:02:36]} Bxf5 {[%emt 0:03:24]} (17... gxf5 $142 18. f4 exf4) 18. g4 $2 {[%emt 0:00:20] [#]} (18. O-O-O $18) 18... hxg4 $15 {[%emt 0:05:20]} 19. fxg4 {[%emt 0:00:05]} Nxg4 {[%emt 0:04:23]} 20. Bxd8 {[%emt 0:09:09]} (20. Bxg4 $15 Bxg5 21. Qxg5 (21. hxg5 Rxh1+ 22. Nxh1 Bxg4 $17) 21... Qxg5 22. hxg5 Rxh1+ 23. Nxh1 Bxg4 24. Ng3) 20... Bxd2+ $17 {[%emt 0:00:11]} 21. Kxd2 {[%emt 0:00:02]} Nxf2 {[%emt 0:00:40]} 22. Bxc7 {[%emt 0:00:05]} Kd7 {[%emt 0:02:17]} 23. Bxb6 {[%emt 0:04:09]} Nxh1 {[%emt 0:01:13]} 24. Rxh1 {[%emt 0:00:08]} Nf6 {[%emt 0:02:32]} 25. Be3 {[%emt 0:01:17]} Ne4+ {[%emt 0:06:34]} 26. Nxe4 {[%emt 0:00:19]} Bxe4 {[%emt 0:00:05]} 27. Rh2 {[%emt 0:00:51]} Rab8 {[%emt 0:05:09]} 28. Kc3 {[%emt 0:00:42]} Rhf8 {[%emt 0:01:56]} 29. b3 {[%emt 0:01:54]} Bf3 {[%emt 0:00:32] ...Bxe2 would now be deadly.} 30. Bd3 {[%emt 0:00:07]} Bh5 {[%emt 0:00:18]} 31. Rh3 {[%emt 0:01:11]} Rf6 {[%emt 0:00:45]} 32. Rg3 {[%emt 0:02:22]} Rbf8 {[%emt 0:00:21]} 33. Be4 {[%emt 0:01:41] Prevents Rf3.} Kc7 {[%emt 0:00:38]} (33... Rf1 $15 {is superior.}) 34. Bg2 $11 {[%emt 0:00:56]} Bf3 {[%emt 0:00:34]} 35. Bh6 $1 {[%emt 0:00:24]} R8f7 {[%emt 0:00:29] [#] And now ...Bxg2 would win.} 36. Bg5 $1 {[%emt 0:00:13]} Bxg2 {[%emt 0:00:33]} 37. Bxf6 {[%emt 0:00:12][%mdl 4096] Endgame. KRB-KRB} Be4 {[%emt 0:00:13]} 38. Re3 {[%emt 0:00:29] Threatens to win with Bxe5.} Bg2 {[%emt 0:00:42]} (38... Bxd5 $11 39. Bxe5 dxe5 40. cxd5 Kd6) 39. Bg5 $14 {[%emt 0:00:29]} Rf3 $2 {[%emt 0:00:30] This move loses the game for Black.} (39... Rf2 $14) 40. Rxf3 $18 {[%emt 0:00:46]} Bxf3 {[%emt 0:00:02] KB-KB} 41. Kb2 {[%emt 0:00:16]} Bg4 {[%emt 0:00:46]} 42. Bf6 {[%emt 0:05:09]} e4 $2 {[%emt 0:00:42]} (42... Bf5 43. Ka3 Be4) 43. Bg5 {[%emt 0:00:14]} Bd7 {[%emt 0:00:27]} 44. Kc3 {[%emt 0:00:12]} Bg4 {[%emt 0:00:37]} 45. Kd4 $2 {[%emt 0:00:12]} (45. Bf4 Kd7 46. Kd4) 45... Bf3 {[%emt 0:00:27]} 46. Bd2 {[%emt 0:00:06]} Kb6 {[%emt 0:00:30]} 47. Bf4 {[%emt 0:00:06]} Bd1 $2 {[%emt 0:00:34]} (47... Kc7 48. c5 Bd1 49. Bxd6+ (49. cxd6+ Kd7 $18) 49... Kb7 50. c6+ (50. Kxe4 Be2 $18) 50... Kb6) 48. Bxd6 {[%emt 0:00:38]} Bc2 {[%emt 0:00:28]} 49. Bf4 {[%emt 0:00:48]} Bb1 {[%emt 0:00:30]} 50. a3 {[%emt 0:00:08][%cal Ba2a3,Ba3b4,Bb4b5,Bb5b6][%mdl 32]} Bc2 {[%emt 0:00:24]} 51. b4 {[%emt 0:00:05]} (51. c5+ $142 Kb7 52. c6+ Kb6 53. c7 Kb7 54. d6 Kc8 55. b4 axb4 56. axb4) 51... axb4 {[%emt 0:00:26]} 52. axb4 {[%emt 0:00:05] White mates.} Kb7 {[%emt 0:00:17]} 53. b5 {[%emt 0:00:08]} Bd3 {[%emt 0:00:17]} 54. d6 {[%emt 0:00:29][%cal Bd5d6,Bd6d7][%mdl 32]} Kc8 {[%emt 0:00:06]} 55. b6 {[%emt 0:00:10]} Be2 {[%emt 0:01:02]} 56. d7+ {[%emt 0:00:08] Weighted Error Value: White=0.29 (precise) /Black=0.63.  Loses game:     	---       	Black=1      Missed win:     	White=1     	---        Mistake:       	White=2     	Black=7      Inaccurate:     	White=3     	Black=9      OK:         	White=12    	Black=5      Best:        	White=5     	Black=3      Strong:       	White=2     	---} 1-0

[Event "3rd Matrix Cup 2024"]
[Site "New Delhi"]
[Date "2024.04.07"]
[Round "4.3"]
[White "Gada Om"]
[Black "Singh, Arvinder Preet"]
[Result "0-1"]
[ECO "A83"]
[WhiteElo "1759"]
[BlackElo "2064"]
[Annotator "RC"]
[PlyCount "84"]
[EventDate "2024.04.07"]
[EventType "swiss"]
[EventCountry "IND"]
[SourceTitle "playchess.com"]
[Source "ChessBase"]
[SourceQuality "1"]
[TimeControl "5400+30"]

1. d4 {[%emt 0:00:51]} f5 {[%emt 0:00:08]} 2. Nc3 {[%emt 0:00:17]} Nf6 {[%emt 0:00:17]} 3. Bg5 {[%emt 0:00:24]} e6 {[%emt 0:00:13]} 4. e4 {[%emt 0:00:50]} fxe4 {[%emt 0:00:17]} 5. Nxe4 {[%emt 0:00:12]} Be7 {[%emt 0:00:03]} 6. Bxf6 {[%emt 0:00:48]} Bxf6 {[%emt 0:00:06]} 7. Nf3 {[%emt 0:00:21]} O-O {[%emt 0:00:47]} 8. Bd3 {[%emt 0:05:30]} Nc6 {[%emt 0:00:08]} 9. c3 {[%emt 0:03:52]} d5 {[%emt 0:00:32]} 10. Nxf6+ {[%emt 0:00:37]} gxf6 {[%emt 0:00:06]} 11. Qc2 {[%emt 0:13:27]} Kh8 {[%emt 0:00:13]} 12. O-O-O {[%emt 0:05:24]} Qe7 {[%emt 0:00:14]} 13. Rhe1 {[%emt 0:05:01]} Qg7 {[%emt 0:00:13]} 14. g3 {[%emt 0:08:41]} e5 {[%emt 0:07:06]} 15. Bf5 {[%emt 0:01:07]} e4 {[%emt 0:20:40]} 16. Bxc8 {[%emt 0:00:05]} Raxc8 {[%emt 0:00:15]} 17. Nh4 {[%emt 0:00:15]} Ne7 {[%emt 0:01:00]} 18. f4 {[%emt 0:51:48]} c6 {[%emt 0:07:46]} 19. Qb3 {[%emt 0:00:00]} Rc7 {[%emt 0:14:06]} 20. Kb1 {[%emt 0:00:00]} Qg4 {[%emt 0:03:00]} 21. Rd2 {[%emt 0:00:00]} b6 {[%emt 0:07:19]} 22. Ng2 {[%emt 0:00:00]} Nf5 {[%emt 0:01:57]} 23. Ne3 {[%emt 0:00:00]} Nxe3 {[%emt 0:00:05]} 24. Rxe3 {[%emt 0:00:00]} Qe6 {[%emt 0:01:09]} 25. Qd1 {[%emt 0:00:00]} f5 {[%emt 0:00:48]} 26. b3 {[%emt 0:00:00]} Rg8 {[%emt 0:01:25]} 27. Qe2 {[%emt 0:00:00]} b5 {[%emt 0:01:25]} 28. b4 {[%emt 0:00:00]} a5 {[%emt 0:01:35]} 29. a3 {[%emt 0:00:00]} Ra7 {[%emt 0:00:10]} 30. Kb2 {[%emt 0:00:00]} Qf7 {[%emt 0:04:06]} 31. h4 {[%emt 0:00:00]} Rg4 {[%emt 0:03:59]} 32. Qe1 {[%emt 0:00:00]} Qg8 {[%emt 0:01:18]} 33. Rh2 {[%emt 0:00:00]} Qg7 {[%emt 0:04:44]} 34. Rh3 {[%emt 0:03:34]} axb4 {[%emt 0:05:33]} 35. axb4 {[%emt 0:00:11]} Ra4 {[%emt 0:00:14]} 36. Qd1 {[%emt 0:04:20]} Qa7 {[%emt 0:00:50]} 37. Qb3 {[%emt 0:00:46]} Rg8 {[%emt 0:00:18]} 38. Rh1 {[%emt 0:00:21]} Ra8 {[%emt 0:00:10]} 39. Rb1 {[%emt 0:00:19]} Ra3 {[%emt 0:00:33]} 40. Qd1 {[%emt 0:00:11]} Ra2+ {[%emt 0:00:12]} 41. Kc1 {[%emt 0:00:10]} Qa3+ {[%emt 0:00:07]} 42. Rb2 {[%emt 0:00:03]} Qxb2# {[%emt 0:00:10]} 0-1

[Event "3rd Matrix Cup 2024"]
[Site "New Delhi"]
[Date "2024.04.07"]
[Round "4.4"]
[White "Ram Prakash, R."]
[Black "Gorli Nyna"]
[Result "1/2-1/2"]
[ECO "D38"]
[WhiteElo "2191"]
[BlackElo "1769"]
[Annotator "RC"]
[PlyCount "124"]
[EventDate "2024.04.07"]
[EventType "swiss"]
[EventCountry "IND"]
[SourceTitle "playchess.com"]
[Source "ChessBase"]
[SourceQuality "1"]
[TimeControl "5400+30"]

1. Nf3 {[%emt 0:00:03]} Nf6 {[%emt 0:02:57]} 2. c4 {[%emt 0:04:56]} e6 {[%emt 0:00:50]} 3. Nc3 {[%emt 0:01:39]} d5 {[%emt 0:00:24]} 4. d4 {[%emt 0:00:35]} Bb4 {[%emt 0:00:33]} 5. Qa4+ {[%emt 0:07:10]} Nc6 {[%emt 0:00:33]} 6. a3 {[%emt 0:01:22]} Bxc3+ {[%emt 0:01:10]} 7. bxc3 {[%emt 0:00:03]} Ne4 {[%emt 0:02:08]} 8. Qc2 {[%emt 0:00:38]} O-O {[%emt 0:04:11]} 9. cxd5 {[%emt 0:04:49]} exd5 {[%emt 0:00:22]} 10. e3 {[%emt 0:00:22]} Bf5 {[%emt 0:06:35]} 11. Bd3 {[%emt 0:00:08]} Re8 {[%emt 0:00:31]} 12. Bb2 {[%emt 0:03:00]} Ne7 {[%emt 0:11:55]} 13. O-O {[%emt 1:12:15]} Nd6 {[%emt 0:04:06]} 14. Nd2 {[%emt 0:00:00]} Qd7 {[%emt 0:06:26]} 15. a4 {[%emt 0:00:00]} Qe6 {[%emt 0:11:42]} 16. Ba3 {[%emt 0:00:00]} Bxd3 {[%emt 0:03:19]} 17. Qxd3 {[%emt 0:00:00]} Nef5 {[%emt 0:00:23]} 18. Bxd6 {[%emt 0:00:00]} Nxd6 {[%emt 0:00:17]} 19. Rfc1 {[%emt 0:00:00]} Rac8 {[%emt 0:04:18]} 20. c4 {[%emt 0:00:00]} c5 {[%emt 0:05:30]} 21. dxc5 {[%emt 0:00:00]} Rxc5 {[%emt 0:00:13]} 22. cxd5 {[%emt 0:00:00]} Rxd5 {[%emt 0:01:11]} 23. Qe2 {[%emt 0:00:00]} Rc8 {[%emt 0:01:48]} 24. Nb3 {[%emt 0:00:00]} Ne4 {[%emt 0:04:04]} 25. Nd4 {[%emt 0:00:00]} Qd7 {[%emt 0:00:53]} 26. h3 {[%emt 0:00:00]} Nc3 {[%emt 0:01:49]} 27. Qf3 {[%emt 0:00:00]} Rdc5 {[%emt 0:01:06]} 28. a5 {[%emt 0:00:00]} Qc7 {[%emt 0:02:15]} 29. Kh1 {[%emt 0:00:00]} h6 {[%emt 0:02:06]} 30. g4 {[%emt 0:00:00]} Rxa5 {[%emt 0:02:51]} 31. Rxa5 {[%emt 0:00:00]} Qxa5 {[%emt 0:00:04]} 32. Qxb7 {[%emt 0:00:00]} Re8 {[%emt 0:02:14]} 33. Kg1 {[%emt 0:00:00]} Ne4 {[%emt 0:02:52]} 34. Qc6 {[%emt 0:00:00]} Qe5 {[%emt 0:01:07]} 35. f4 {[%emt 0:00:00]} Qb8 {[%emt 0:02:00]} 36. Kg2 {[%emt 0:00:00]} Nd6 {[%emt 0:00:59]} 37. Qf3 {[%emt 0:00:00]} Qb2+ {[%emt 0:02:35]} 38. Rc2 {[%emt 0:00:00]} Qa3 {[%emt 0:00:23]} 39. Re2 {[%emt 0:00:00]} Qd3 {[%emt 0:01:26]} 40. Qc6 {[%emt 0:00:00]} Qe4+ {[%emt 0:00:21]} 41. Qxe4 {[%emt 0:00:00]} Nxe4 {[%emt 0:00:25]} 42. Kf3 {[%emt 0:00:00]} Nd6 {[%emt 0:01:02]} 43. Ra2 {[%emt 0:00:00]} Nc4 {[%emt 0:02:24]} 44. Nc2 {[%emt 0:00:00]} a5 {[%emt 0:00:19]} 45. Ke2 {[%emt 0:00:00]} Rd8 {[%emt 0:00:40]} 46. Nd4 {[%emt 0:00:00]} Re8 {[%emt 0:00:10]} 47. Kd3 {[%emt 0:00:00]} Rc8 {[%emt 0:00:46]} 48. Rc2 {[%emt 0:01:13]} Nb6 {[%emt 0:00:04]} 49. Rxc8+ {[%emt 0:03:24]} Nxc8 {[%emt 0:00:01]} 50. Kc4 {[%emt 0:00:11]} Nb6+ {[%emt 0:01:09]} 51. Kb5 {[%emt 0:01:11]} Nd5 {[%emt 0:00:11]} 52. Nc2 {[%emt 0:00:09]} Nc3+ {[%emt 0:02:00]} 53. Kxa5 {[%emt 0:00:07]} Ne4 {[%emt 0:00:02]} 54. h4 {[%emt 0:01:56]} g5 {[%emt 0:00:25]} 55. hxg5 {[%emt 0:00:52]} hxg5 {[%emt 0:00:01]} 56. Kb4 {[%emt 0:01:11]} Nf2 {[%emt 0:00:14]} 57. fxg5 {[%emt 0:00:09]} Nxg4 {[%emt 0:00:03]} 58. e4 {[%emt 0:02:04]} Kg7 {[%emt 0:09:07]} 59. Ne1 {[%emt 0:00:39]} Kg6 {[%emt 0:00:00]} 60. Nf3 {[%emt 0:00:28]} Nf2 {[%emt 0:00:00]} 61. Ne5+ {[%emt 0:01:16]} Kxg5 {[%emt 0:00:00]} 62. Nxf7+ {[%emt 0:00:11]} Kf6 {[%emt 0:00:00]} 1/2-1/2